Workbook

Sheet Tauragė
A1: VĮ Valstybinių miškų urėdijos Tauragės regioninio padalinio informacija apie perkamus miškininkystės paslaugų kiekius 2025 metams
A2: Eil. | B2: Paslaugų grupės ir paslaugų pavadinimai | C2: Preliminarios paslaugų apimtys
A3: 1 | B3: Želdaviečių paruošimas miškų sodinimui, želdinių ir žėlinių priežiūra, jaunuolynų ugdymas, griovių šlaitų ir pagriovių, pakelių, kvartalinių ir ribinių linijų priežiūra | C3: Mato vnt. | D3: Ringių girininkija 1 | E3: Pagramančio, Ringių, Batakių, girininkijos
A4: Pirkimo objekto dalies numeris | D4: 1 | E4: 2
A5: 1. | B5: Želdavietės paruošimas miško sodmenų sodinimui šalinant nepageidaujamus medžius, krūmus, žolinę augmeniją | C5: ha | D5: 23
A6: 2. | B6: Miško želdinių ir žėlinių priežiūra šalinant žabus ir žolinę augmeniją | C6: ha | D6: 50
A7: 3. | B7: Jaunuolynų ugdymas ir/ar retinimo kirtimai, negaminant likvidinės medienos | C7: ha | D7: 22
A8: 4. | B8: Griovių šlaitų ir pagriovių priežiūra | C8: ha | D8: 0
A9: 5. | B9: Pakelių priežiūra | C9: km | D9: 0 | E9: 50
A10: 6. | B10: kvartalinių ir ribinių linijų priežūra | C10: km | D10: 0
D11: =+D5*301+D6*263+D7*299+D8*301+D9*53+D10*126 -> 26651 | E11: =+E5*301+E6*263+E7*299+E8*301+E9*53+E10*126 -> 2650
D12: =+D11*3*1.3 -> 103938.9 | E12: =+E11*3*1.3 -> 10335
A14: 3. | B14: Miško sodmenų sodinimas, želdinių ir žėlinių medelių ir jų liemenų apsauga nuo kanopinių žvėrių bei vabzdžių daromos žalos | C14: Mato vnt. | D14: Preliminarios paslaugų apimtys
D15: Ringių girininkija 2 | E15: Batakių girininkija | F15: Balskų girininkija | G15: Sakalinės girininkija
A16: Pirkimo objekto dalies numeris | D16: 3 | E16: 4 | F16: 5 | G16: 6
A17: 8. | B17: Miško atkūrimas, įveisimas ir atsodinimas (medelių ir krūmų sodinimas) | C17: tūkst. vnt. | D17: 124 | E17: 88 | F17: 110 | G17: 95
A18: 9. | B18: Želdinių, žėlinių apsauga nuo kanopinių žvėrių bei vabzdžių daromos žalos | C18: tūkst. vnt. | D18: 214 | E18: 0 | F18: 280 | G18: 400
A19: 10. | B19: Želdinių, žėlinių ir medelių kamienų apsauga nuo kanopinių žvėrių daromos žalos | C19: tūkst. vnt. | D19: 20 | E19: 0 | F19: 10 | G19: 40
D20: =+D17*178+D18*27+D19*390 -> 35650 | E20: =+E17*178+E18*27+E19*390 -> 15664 | F20: 31040 | G20: 43310
D21: =+D20*3*1.3 -> 139035 | E21: =+E20*3*1.3 -> 61089.6 | F21: 121056 | G21: 168909
A23: 4. | B23: Želdinių, žėlinių apsauga nuo kanopinių žvėrių daromos žalos, tveriant vielos tinklo tvorą | C23: Mato vnt. | D23: Preliminarios paslaugų apimtys
D24: Pagramančio, Ringių, Tauragės, Sakalinės girininkijos
A25: Pirkimo objekto dalies numeris | D25: 7
A26: 11. | B26: Želdinių, žėlinių apsauga nuo kanopinių žvėrių daromos žalos, tveriant vielos tinklo tvorą | C26: m | D26: 7800
D27: =+D26*1.85 -> 14430
D28: =+D27*3*1.3 -> 56277
A30: 5. | B30: Sodmenų transportavimo paslaugos | C30: Mato vnt. | D30: Preliminarios paslaugų apimtys
D31: Ringių girininkija 3
A32: Pirkimo objekto dalies numeris | D32: 8
A33: 12. | B33: Sodmenų transportavimo paslaugos | C33: km | D33: 200
D34: =+D33*1.5 -> 300
D35: =+D34*3*1.3 -> 1170

Sheet Telšiai
A1: VĮ Valstybinių miškų urėdijos Telšių regioninio padalinio informacija apie perkamus miškininkystės paslaugų kiekius 2025 metams
A2: Eil. | B2: Paslaugų grupės ir paslaugų pavadinimai | C2: Preliminarios paslaugų apimtys
A3: 3. | B3: Miško sodmenų sodinimas, želdinių ir žėlinių medelių ir jų liemenų apsauga nuo kanopinių žvėrių bei vabzdžių daromos žalos | C3: Mato vnt. | D3: Preliminarios paslaugų apimtys
D4: Varnių girininkija | E4: Girėnų girininkija 1 | F4: Girėnų girininkija 2
A5: Pirkimo objekto dalies numeris | D5: 9 | E5: 10 | F5: 11
A6: 8. | B6: Miško atkūrimas, įveisimas ir atsodinimas (medelių ir krūmų sodinimas) | C6: tūkst. vnt. | D6: 50 | E6: 35 | F6: 35
A7: 9. | B7: Želdinių, žėlinių apsauga nuo kanopinių žvėrių bei vabzdžių daromos žalos | C7: tūkst. vnt. | D7: 0 | E7: 25 | F7: 25
A8: 10. | B8: Želdinių, žėlinių ir medelių kamienų apsauga nuo kanopinių žvėrių daromos žalos | C8: tūkst. vnt. | D8: 0 | E8: 3 | F8: 3
D9: =+D6*178+D7*27+D8*390 -> 8900 | E9: =+E6*178+E7*27+E8*390 -> 8075 | F9: 8075
D10: =+D9*3*1.3 -> 34710 | E10: =+E9*3*1.3 -> 31492.5 | F10: 31492.5

Sheet Trakai
A1: VĮ Valstybinių miškų urėdijos Trakų regioninio padalinio informacija apie perkamus miškininkystės paslaugų kiekius 2025 metams
A2: Eil. | B2: Paslaugų grupės ir paslaugų pavadinimai | C2: Preliminarios paslaugų apimtys
A3: 1 | B3: Želdaviečių paruošimas miškų sodinimui, želdinių ir žėlinių priežiūra, jaunuolynų ugdymas, griovių šlaitų ir pagriovių, pakelių, kvartalinių ir ribinių linijų priežiūra | C3: Mato vnt. | D3: Aukštadvario girininkija 1 | E3: Ropėjų girininkija 1 | F3: Žeronių girininkija 1 | G3: Semeliškių girininkija 1 | H3: Vievio girininkija | I3: Pravieniškių girininkija | J3: Palomenės girininkija 1 | K3: Kruonio girininkija
A4: Pirkimo objekto dalies numeris | D4: 12 | E4: 13 | F4: 14 | G4: 15 | H4: 16 | I4: 17 | J4: 18 | K4: 19
A5: 1. | B5: Želdavietės paruošimas miško sodmenų sodinimui šalinant nepageidaujamus medžius, krūmus, žolinę augmeniją | C5: ha | D5: 2 | E5: 2 | F5: 2 | G5: 2 | H5: 0 | I5: 4 | J5: 1 | K5: 4
A6: 2. | B6: Miško želdinių ir žėlinių priežiūra šalinant žabus ir žolinę augmeniją | C6: ha | D6: 70 | E6: 30 | F6: 100 | G6: 80 | H6: 30 | I6: 70 | J6: 40 | K6: 80
A7: 3. | B7: Jaunuolynų ugdymas ir/ar retinimo kirtimai, negaminant likvidinės medienos | C7: ha | D7: 30 | E7: 20 | F7: 60 | G7: 60 | H7: 0 | I7: 50 | J7: 20 | K7: 70
A8: 4. | B8: Griovių šlaitų ir pagriovių priežiūra | C8: ha | D8: 1 | E8: 2 | F8: 1 | G8: 4 | H8: 0 | I8: 5 | J8: 5 | K8: 0
A9: 5. | B9: Pakelių priežiūra | C9: km | D9: 10 | E9: 10 | F9: 10 | G9: 10 | H9: 5 | I9: 8 | J9: 5 | K9: 5
A10: 6. | B10: kvartalinių ir ribinių linijų priežūra | C10: km | D10: 5 | E10: 15 | F10: 20 | G10: 15 | H10: 10 | I10: 10 | J10: 10 | K10: 5
D11: =+D5*301+D6*263+D7*299+D8*301+D9*53+D10*126 -> 29443 | E11: =+E5*301+E6*263+E7*299+E8*301+E9*53+E10*126 -> 17494 | F11: 48193 | G11: 43206 | H11: 9415 | I11: 37753 | J11: 19831 | K11: 44069
D12: =+D11*3*1.3 -> 114827.7 | E12: =+E11*3*1.3 -> 68226.6 | F12: 187952.7 | G12: 168503.4 | H12: 36718.5 | I12: 147236.7 | J12: 77340.9 | K12: 171869.1
A14: 3. | B14: Miško sodmenų sodinimas, želdinių ir žėlinių medelių ir jų liemenų apsauga nuo kanopinių žvėrių bei vabzdžių daromos žalos | C14: Mato vnt. | D14: Preliminarios paslaugų apimtys
D15: Aukštadvario girininkija 2 | E15: Ropėjų girininkija 2 | F15: Žeronių girininkija 2 | G15: Semeliškių girininkija 2 | H15: Rūdiškių girininkija | I15: Palomenės girininkija 2
A16: Pirkimo objekto dalies numeris | D16: 20 | E16: 21 | F16: 22 | G16: 23 | H16: 24 | I16: 25
A17: 8. | B17: Miško atkūrimas, įveisimas ir atsodinimas (medelių ir krūmų sodinimas) | C17: tūkst. vnt. | D17: 70 | E17: 20 | F17: 70 | G17: 220 | H17: 100 | I17: 40
A18: 9. | B18: Želdinių, žėlinių apsauga nuo kanopinių žvėrių bei vabzdžių daromos žalos | C18: tūkst. vnt. | D18: 25 | E18: 120 | F18: 300 | G18: 260 | H18: 30 | I18: 100
A19: 10. | B19: Želdinių, žėlinių ir medelių kamienų apsauga nuo kanopinių žvėrių daromos žalos | C19: tūkst. vnt. | D19: 5 | E19: 0 | F19: 0 | G19: 5 | H19: 5 | I19: 5
D20: =+D17*178+D18*27+D19*390 -> 15085 | E20: =+E17*178+E18*27+E19*390 -> 6800 | F20: 20560 | G20: 48130 | H20: 20560 | I20: 11770
D21: =+D20*3*1.3 -> 58831.5 | E21: =+E20*3*1.3 -> 26520 | F21: 80184 | G21: 187707 | H21: 80184 | I21: 45903
A23: 4. | B23: Želdinių, žėlinių apsauga nuo kanopinių žvėrių daromos žalos, tveriant vielos tinklo tvorą | C23: Mato vnt. | D23: Preliminarios paslaugų apimtys
D24: RP teritorija 1 | E24: RP teritorija 2
A25: Pirkimo objekto dalies numeris | D25: 26 | E25: 27
A26: 11. | B26: Želdinių, žėlinių apsauga nuo kanopinių žvėrių daromos žalos, tveriant vielos tinklo tvorą | C26: m | D26: 8000 | E26: 8000
D27: =+D26*1.85 -> 14800 | E27: =+E26*1.85 -> 14800
D28: =+D27*3*1.3 -> 57720 | E28: =+E27*3*1.3 -> 57720

Sheet Ukmergės
A1: VĮ Valstybinių miškų urėdijos Ukmergės regioninio padalinio informacija apie perkamus miškininkystės paslaugų kiekius 2025 metams
A2: 4. | B2: Želdinių, žėlinių apsauga nuo kanopinių žvėrių daromos žalos, tveriant vielos tinklo tvorą | C2: Mato vnt. | D2: Preliminarios paslaugų apimtys
D3: Ukmergės regioninis padalinys
A4: Pirkimo objekto dalies numeris | D4: 28
A5: 11. | B5: Želdinių, žėlinių apsauga nuo kanopinių žvėrių daromos žalos, tveriant vielos tinklo tvorą | C5: m | D5: 10000
D6: =+D5*1.85 -> 18500
D7: =+D6*3*1.3 -> 72150

Sheet Varėna
A1: VĮ Valstybinių miškų urėdijos Varėnos regioninio padalinio informacija apie perkamus miškininkystės paslaugų kiekius 2025 metams
A2: Eil. | B2: Paslaugų grupės ir paslaugų pavadinimai | C2: Preliminarios paslaugų apimtys
A3: 1 | B3: Želdaviečių paruošimas miškų sodinimui, želdinių ir žėlinių priežiūra, jaunuolynų ugdymas, griovių šlaitų ir pagriovių, pakelių, kvartalinių ir ribinių linijų priežiūra | C3: Mato vnt. | D3: Perlojos girininkija | E3: Kaniavos girininkija | F3: Glūko girininkija | G3: Matuizų girininkija 1 | H3: Žygmantiškių girininkija 1
A4: Pirkimo objekto dalies numeris | D4: 29 | E4: 30 | F4: 31 | G4: 32 | H4: 33
A5: 1. | B5: Želdavietės paruošimas miško sodmenų sodinimui šalinant nepageidaujamus medžius, krūmus, žolinę augmeniją | C5: ha
A6: 2. | B6: Miško želdinių ir žėlinių priežiūra šalinant žabus ir žolinę augmeniją | C6: ha | D6: 128 | F6: 60 | G6: 80 | H6: 70
A7: 3. | B7: Jaunuolynų ugdymas ir/ar retinimo kirtimai, negaminant likvidinės medienos | C7: ha | D7: 29 | E7: 50 | F7: 90
A8: 4. | B8: Griovių šlaitų ir pagriovių priežiūra | C8: ha
A9: 5. | B9: Pakelių priežiūra | C9: km
A10: 6. | B10: kvartalinių ir ribinių linijų priežūra | C10: km
D11: =+D5*301+D6*263+D7*299+D8*301+D9*53+D10*126 -> 42335 | E11: =+E5*301+E6*263+E7*299+E8*301+E9*53+E10*126 -> 14950 | F11: 42690 | G11: 21040 | H11: 18410
D12: =+D11*3*1.3 -> 165106.5 | E12: =+E11*3*1.3 -> 58305 | F12: 166491 | G12: 82056 | H12: 71799
A14: 3. | B14: Miško sodmenų sodinimas, želdinių ir žėlinių medelių ir jų liemenų apsauga nuo kanopinių žvėrių bei vabzdžių daromos žalos | C14: Mato vnt. | D14: Preliminarios paslaugų apimtys
D15: Perlojos, Marcinkonių girininkijos | E15: Žygmantiškių girininkija 2 | F15: Matuizų girininkija 2
A16: Pirkimo objekto dalies numeris | D16: 34 | E16: 35 | F16: 36
A17: 8. | B17: Miško atkūrimas, įveisimas ir atsodinimas (medelių ir krūmų sodinimas) | C17: tūkst. vnt.
A18: 9. | B18: Želdinių, žėlinių apsauga nuo kanopinių žvėrių bei vabzdžių daromos žalos | C18: tūkst. vnt. | D18: 670 | E18: 538 | F18: 430
A19: 10. | B19: Želdinių, žėlinių ir medelių kamienų apsauga nuo kanopinių žvėrių daromos žalos | C19: tūkst. vnt.
D20: =+D17*178+D18*27+D19*390 -> 18090 | E20: =+E17*178+E18*27+E19*390 -> 14526 | F20: 11610
D21: =+D20*3*1.3 -> 70551 | E21: =+E20*3*1.3 -> 56651.4 | F21: 45279
